fUSD/lending_fUSD_20241227
["ID","MTS","AMOUNT","RATE_DAILY","PERIOD"]
[346828415,1735311036978,-500.0,0.00010768,2]
[346828416,1735311036987,-1077.62,0.00010768,2]
[346828417,1735311036997,-500.0,0.00010768,2]
[346828418,1735311037006,-655.52,0.00010768,2]
[346828419,1735311037016,-500.0,0.00010768,2]
[346828420,1735311037025,-500.0,0.00010768,2]
[346828421,1735311037034,-512.46,0.00010768,2]
[346828422,1735311037044,-500.0,0.00010768,2]
[346828423,1735311037054,-1177.46,0.00010768,2]
[346828424,1735311037063,-500.0,0.00010768,2]
[346828425,1735311037072,-500.0,0.00010768,2]
[346828426,1735311037082,-500.0,0.00010768,2]
[346828427,1735311037091,-500.0,0.00010768,2]
[346828428,1735311037101,-500.0,0.00010768,2]
[346828429,1735311037110,-500.0,0.00010768,2]
[346828430,1735311037121,-500.0,0.00010768,2]
[346828431,1735311037131,-500.0,0.00010768,2]
[346828432,1735311037140,-500.0,0.00010768,2]
[346828433,1735311037151,-500.0,0.00010768,2]
[346828434,1735311037161,-500.0,0.00010768,2]
[346828435,1735311037171,-500.0,0.00010768,2]
[346828436,1735311037180,-500.0,0.00010768,2]
[346828437,1735311037190,-500.0,0.00010768,2]
[346828438,1735311037201,-500.0,0.00010768,2]
[346828439,1735311037211,-516.64129307,0.00010768,2]
[346828440,1735311037220,-1353.69,0.00010768,2]
[346828441,1735311037232,-500.0,0.00010768,2]
[346828442,1735311037241,-855.06,0.00010768,2]
[346828443,1735311037251,-500.0,0.00010768,2]
[346828444,1735311037260,-500.0,0.00010768,2]
[346828445,1735311037270,-500.0,0.00010768,2]
[346828446,1735311037279,-1746.77,0.00010768,2]
[346828447,1735311037288,-1050.22,0.00010768,2]
[346828448,1735311037298,-500.0,0.00010768,2]
[346828449,1735311037307,-500.0,0.00010768,2]
[346828450,1735311037317,-500.0,0.00010768,2]
[346828451,1735311037326,-500.0,0.00010768,2]
[346828452,1735311037336,-1370.27,0.00010768,2]
[346828453,1735311037346,-500.0,0.00010768,2]
[346828454,1735311037356,-500.0,0.00010768,2]
[346828455,1735311037365,-500.0,0.00010768,2]
[346828456,1735311037375,-500.0,0.00010768,2]
[346828457,1735311037385,-500.0,0.00010768,2]
[346828458,1735311037394,-500.0,0.00010768,2]
[346828459,1735311037404,-500.0,0.00010768,2]
[346828460,1735311037414,-500.0,0.00010768,2]
[346828461,1735311037423,-500.0,0.00010768,2]
[346828462,1735311037432,-500.0,0.00010768,2]
[346828463,1735311037442,-1419.21,0.00010768,2]
[346828464,1735311037451,-500.0,0.00010768,2]
[346828465,1735311037461,-1281.67,0.00010768,2]
[346828466,1735311037470,-500.0,0.00010768,2]
[346828467,1735311037481,-639.53,0.00010768,2]
[346828468,1735311037491,-500.0,0.00010768,2]
[346828469,1735311037501,-909.59,0.00010768,2]
[346828470,1735311037510,-1478.59,0.00010768,2]
[346828471,1735311037520,-500.0,0.00010768,2]
[346828472,1735311037530,-914.14,0.00010768,2]
[346828473,1735311037541,-610.78,0.00010768,2]
[346828474,1735311037551,-1086.46,0.00010768,2]
[346828475,1735311037560,-1124.58,0.00010768,2]
[346828476,1735311037569,-500.0,0.00010768,2]
[346828477,1735311037579,-500.0,0.00010768,2]
[346828478,1735311037588,-570.62,0.00010768,2]
[346828479,1735311037598,-500.0,0.00010768,2]
[346828480,1735311037607,-2150.0,0.00010768,2]
[346828481,1735311037617,-437.68636667,0.00010768,2]
[346828482,1735311037626,-500.0,0.00010768,2]
[346828483,1735311037635,-500.0,0.00010768,2]
[346828484,1735311037644,-1242.01,0.00010768,2]
[346828485,1735311037653,-500.0,0.00010768,2]
[346828486,1735311037663,-500.0,0.00010768,2]
[346828487,1735311037672,-500.0,0.00010768,2]
[346828488,1735311037681,-500.0,0.00010768,2]
[346828489,1735311037690,-1000.63,0.00010768,2]
[346828490,1735311037699,-212.68714866,0.00010768,2]
[346828491,1735311037708,-586.67268049,0.00010768,2]
[346828492,1735311037717,-500.0,0.00010768,2]
[346828493,1735311037726,-2073.0,0.00010768,2]
[346828494,1735311037736,-500.0,0.00010768,2]
[346828495,1735311037745,-500.0,0.00010768,2]
[346828496,1735311037753,-1792.95,0.00010768,2]
[346828497,1735311037763,-1300.57,0.00010768,2]
[346828498,1735311037772,-500.0,0.00010768,2]
[346828499,1735311037781,-500.0,0.00010768,2]
[346828500,1735311037790,-500.0,0.00010768,2]
[346828501,1735311037799,-1684.61,0.00010768,2]
[346828502,1735311037808,-500.0,0.00010768,2]
[346828503,1735311037817,-826.96,0.00010768,2]
[346828504,1735311037827,-1144.51,0.00010768,2]
[346828505,1735311037836,-879.83,0.00010768,2]
[346828506,1735311037848,-1868.39,0.00010768,2]
[346828507,1735311037857,-556.48,0.00010768,2]
[346828508,1735311037866,-500.0,0.00010768,2]
[346828509,1735311037875,-500.0,0.00010768,2]
[346828510,1735311037884,-1529.54,0.00010768,2]
[346828511,1735311037894,-500.0,0.00010768,2]
[346828512,1735311037905,-500.0,0.00010768,2]
[346828513,1735311037914,-500.0,0.00010768,2]
[346828514,1735311037923,-1279.0,0.00010768,2]
[346828515,1735311037933,-1194.01,0.00010768,2]
[346828516,1735311037942,-633.13,0.00010768,2]
[346828517,1735311037952,-500.0,0.00010768,2]
[346828518,1735311037962,-500.0,0.00010768,2]
[346828519,1735311037971,-500.0,0.00010768,2]
[346828520,1735311037982,-500.0,0.00010768,2]
[346828521,1735311037991,-500.0,0.00010768,2]
[346828522,1735311038001,-1092.06,0.00010768,2]
[346828523,1735311038011,-848.93,0.00010768,2]
[346828524,1735311038020,-500.0,0.00010768,2]
[346828525,1735311038029,-566.7,0.00010768,2]
[346828526,1735311038039,-500.0,0.00010768,2]
[346828527,1735311038049,-960.51,0.00010768,2]
[346828528,1735311038058,-1500.59,0.00010768,2]
[346828529,1735311038068,-500.0,0.00010768,2]
[346828530,1735311038078,-500.0,0.00010768,2]
[346828531,1735311038087,-1034.45,0.00010768,2]
[346828532,1735311038097,-500.0,0.00010768,2]
[346828533,1735311038107,-1068.62,0.00010768,2]
[346828534,1735311038116,-500.0,0.00010768,2]
[346828535,1735311038126,-500.0,0.00010768,2]
[346828536,1735311038135,-151.0,0.00010768,2]
[346828537,1735311038144,-500.0,0.00010768,2]
[346828538,1735311038152,-967.19,0.00010768,2]
[346828539,1735311038161,-500.0,0.00010768,2]
[346828540,1735311038171,-500.0,0.00010768,2]
[346828541,1735311038179,-835.36,0.00010768,2]
[346828542,1735311038188,-500.0,0.00010768,2]
[346828543,1735311038198,-500.0,0.00010768,2]
[346828544,1735311038207,-500.0,0.00010768,2]
[346828545,1735311038216,-1053.86,0.00010768,2]
[346828546,1735311038226,-500.0,0.00010768,2]
[346828547,1735311038235,-638.0,0.00010768,2]
[346828548,1735311038245,-1284.83,0.00010768,2]
[346828549,1735311038254,-500.0,0.00010768,2]
[346828550,1735311038263,-1237.52,0.00010768,2]
[346828551,1735311038272,-380.81675253,0.00010768,2]
[346828552,1735311038281,-613.31,0.00010768,2]
[346828553,1735311038291,-500.0,0.00010768,2]
[346828554,1735311038299,-1339.16,0.00010768,2]
[346828556,1735311038308,-956.1,0.00010768,2]
[346828558,1735311038318,-500.0,0.00010768,2]
[346828559,1735311038328,-734.77,0.00010768,2]
[346828560,1735311038338,-892.17,0.00010768,2]
[346828561,1735311038347,-3649.02,0.00010768,2]
[346828562,1735311038355,-563.56,0.00010768,2]
[346828563,1735311038364,-987.61,0.00010768,2]
[346828564,1735311038373,-500.0,0.00010768,2]
[346828565,1735311038382,-976.57,0.00010768,2]
[346828566,1735311038391,-500.0,0.00010768,2]
[346828567,1735311038400,-1543.76,0.00010768,2]
[346828568,1735311038410,-500.0,0.00010768,2]
[346828569,1735311038419,-550.4,0.00010768,2]
[346828570,1735311038428,-500.0,0.00010768,2]
[346828571,1735311038438,-873.88,0.00010768,2]
[346828572,1735311038447,-500.0,0.00010768,2]
[346828573,1735311038456,-500.0,0.00010768,2]
[346828574,1735311038466,-500.0,0.00010768,2]
[346828575,1735311038476,-1128.24,0.00010768,2]
[346828576,1735311038487,-500.0,0.00010768,2]
[346828577,1735311038496,-500.0,0.00010768,2]
[346828578,1735311038507,-500.0,0.00010768,2]
[346828579,1735311038516,-2431.18,0.00010768,2]
[346828580,1735311038526,-598.68,0.00010768,2]
[346828581,1735311038535,-500.0,0.00010768,2]
[346828582,1735311038545,-1109.56,0.00010768,2]
[346828583,1735311038554,-601.93,0.00010768,2]
[346828584,1735311038564,-500.0,0.00010768,2]
[346828585,1735311038573,-500.0,0.00010768,2]
[346828586,1735311038582,-500.0,0.00010768,2]
[346828587,1735311038591,-179.90834069,0.00010768,2]
[346828588,1735311038601,-1063.2,0.00010768,2]
[346828589,1735311038610,-2131.24,0.00010768,2]
[346828590,1735311038619,-500.0,0.00010768,2]
[346828591,1735311038628,-500.0,0.00010768,2]
[346828592,1735311038637,-500.0,0.00010768,2]
[346828593,1735311038646,-1137.84,0.00010768,2]
[346828594,1735311038655,-1239.87,0.00010768,2]
[346828595,1735311038664,-500.0,0.00010768,2]
[346828596,1735311038674,-500.0,0.00010768,2]
[346828597,1735311038683,-500.0,0.00010768,2]
[346828598,1735311038692,-500.0,0.00010768,2]
[346828599,1735311038701,-6251.81,0.00010768,2]
[346828600,1735311038710,-1264.13,0.00010768,2]
[346828601,1735311038719,-500.0,0.00010768,2]
[346828602,1735311038730,-1597.12,0.00010768,2]
[346828603,1735311038739,-500.0,0.00010768,2]
[346828604,1735311038748,-500.0,0.00010768,2]
[346828605,1735311038757,-1431.41,0.00010768,2]
[346828606,1735311038766,-500.0,0.00010768,2]
[346828607,1735311038775,-500.0,0.00010768,2]
[346828608,1735311038784,-1295.83,0.00010768,2]
[346828609,1735311038793,-3767.25,0.00010768,2]
[346828610,1735311038803,-500.0,0.00010768,2]
[346828611,1735311038812,-500.0,0.00010768,2]
[346828612,1735311038821,-1626.61,0.00010768,2]
[346828613,1735311038830,-757.59,0.00010768,2]
[346828614,1735311038840,-972.72,0.00010768,2]
[346828615,1735311038850,-667.59,0.00010768,2]
[346828616,1735311038859,-500.0,0.00010768,2]
[346828617,1735311038868,-1569.3,0.00010768,2]
[346828618,1735311038877,-822.3,0.00010768,2]
[346828619,1735311038886,-17483.07,0.00010768,2]
[346828620,1735311038895,-500.0,0.00010768,2]
[346828621,1735311038905,-2384.7,0.00010768,2]
[346828622,1735311038915,-500.0,0.00010768,2]
[346828623,1735311038926,-500.0,0.00010768,2]
[346828624,1735311038936,-704.72,0.00010768,2]
[346828625,1735311038945,-641.08,0.00010768,2]
[346828626,1735311038956,-500.0,0.00010768,2]
[346828627,1735311038966,-500.0,0.00010768,2]
[346828628,1735311038975,-500.0,0.00010768,2]
[346828629,1735311038985,-6679.43867153,0.00010768,2]
[346828631,1735311039733,-3090.44816829,0.00010768,2]
[346828632,1735311039746,-971.79316018,0.00010768,2]
[346828633,1735311039756,-1100.92,0.00010768,2]
[346828634,1735311039766,-500.0,0.00010768,2]
[346828635,1735311039776,-507.12,0.00010768,2]
[346828636,1735311039785,-1697.49,0.00010768,2]
[346828637,1735311039795,-657.1751475,0.00010768,2]
[346828638,1735311039807,-287.9248525,0.00010768,2]
[346828639,1735311039816,-500.0,0.00010768,2]
[346828640,1735311039825,-500.0,0.00010768,2]
[346828641,1735311039838,-1058.49,0.00010768,2]
[346828642,1735311039848,-500.0,0.00010768,2]
[346828643,1735311039857,-500.0,0.00010768,2]
[346828644,1735311039866,-734.46,0.00010768,2]
[346828645,1735311039876,-786.33,0.00010768,2]
[346828646,1735311039885,-500.0,0.00010768,2]
[346828647,1735311039894,-606.75,0.00010768,2]
[346828648,1735311039904,-500.0,0.00010768,2]
[346828649,1735311039913,-2476.28,0.00010768,2]
[346828650,1735311039923,-500.0,0.00010768,2]
[346828651,1735311039932,-1399.5,0.00010768,2]
[346828652,1735311039941,-500.0,0.00010768,2]
[346828653,1735311039950,-500.0,0.00010768,2]
[346828654,1735311039959,-486.29685761,0.00010768,2]
[346828655,1735311039969,-500.0,0.00010768,2]
[346828656,1735311039981,-1117.51,0.00010768,2]
[346828657,1735311039990,-996.41,0.00010768,2]
[346828658,1735311039999,-500.0,0.00010768,2]
[346828659,1735311040008,-500.0,0.00010768,2]
[346828660,1735311040017,-500.0,0.00010768,2]
[346828661,1735311040026,-1036.83,0.00010768,2]
[346828662,1735311040036,-731.13,0.00010768,2]
[346828663,1735311040045,-883.22,0.00010768,2]
[346828664,1735311040054,-1588.83,0.00010768,2]
[346828665,1735311040064,-500.0,0.00010768,2]
[346828666,1735311040074,-1258.21,0.00010768,2]
[346828667,1735311040083,-3597.4,0.00010768,2]
[346828668,1735311040092,-500.0,0.00010768,2]
[346828669,1735311040101,-547.27,0.00010768,2]
[346828670,1735311040111,-151.0,0.00010768,2]
[346828671,1735311040120,-151.0,0.00010768,2]
[346828672,1735311040130,-1330.99,0.00010768,2]
[346828673,1735311040138,-500.0,0.00010768,2]
[346828674,1735311040148,-1188.47,0.00010768,2]
[346828675,1735311040157,-500.0,0.00010768,2]
[346828676,1735311040166,-500.0,0.00010768,2]
[346828677,1735311040176,-505.15745986,0.00010768,2]
[346828678,1735311040185,-218.46026678,0.00010768,2]
[346828679,1735311040193,-500.0,0.00010768,2]
[346828680,1735311040202,-500.0,0.00010768,2]
[346828681,1735311040211,-5140.77,0.00010768,2]
[346828682,1735311040220,-500.0,0.00010768,2]
[346828683,1735311040232,-620.83586324,0.00010768,2]
[346828684,1735311040241,-2441.71,0.00010768,2]
[346828685,1735311040251,-500.0,0.00010768,2]
[346828686,1735311040259,-2133.84,0.00010768,2]
[346828687,1735311040269,-500.0,0.00010768,2]
[346828688,1735311040278,-605.85954951,0.00010768,2]
[346828689,1735311040287,-500.0,0.00010768,2]
[346828690,1735311040296,-1061.12,0.00010768,2]
[346828691,1735311040304,-500.0,0.00010768,2]
[346828692,1735311040314,-500.0,0.00010768,2]
[346828693,1735311040324,-500.0,0.00010768,2]
[346828694,1735311040334,-500.0,0.00010768,2]
[346828695,1735311040343,-517.87,0.00010768,2]
[346828696,1735311040352,-30240.36,0.00010768,2]
[346828697,1735311040361,-500.0,0.00010768,2]
[346828698,1735311040371,-1628.74,0.00010768,2]
[346828699,1735311040380,-705.7,0.00010768,2]
[346828700,1735311040389,-500.0,0.00010768,2]
[346828701,1735311040399,-500.0,0.00010768,2]
[346828702,1735311040408,-500.0,0.00010768,2]
[346828703,1735311040418,-1208.24,0.00010768,2]
[346828704,1735311040427,-500.0,0.00010768,2]
[346828705,1735311040436,-1058.05,0.00010768,2]
[346828706,1735311040445,-500.0,0.00010768,2]
[346828707,1735311040455,-1681.46,0.00010768,2]
[346828708,1735311040464,-500.0,0.00010768,2]
[346828709,1735311040474,-500.0,0.00010768,2]
[346828710,1735311040485,-703.4,0.00010768,2]
[346828711,1735311040494,-500.0,0.00010768,2]
[346828712,1735311040503,-1091.25,0.00010768,2]
[346828713,1735311040512,-500.0,0.00010768,2]
[346828714,1735311040522,-500.0,0.00010768,2]
[346828715,1735311040531,-1445.93,0.00010768,2]
[346828716,1735311040540,-319.65774042,0.00010768,2]
[346828717,1735311040550,-500.0,0.00010768,2]
[346828718,1735311040560,-1297.72,0.00010768,2]
[346828719,1735311040569,-500.0,0.00010768,2]
[346828720,1735311040578,-1221.34,0.00010768,2]
[346828721,1735311040588,-500.0,0.00010768,2]
[346828722,1735311040597,-439.76145004,0.00010768,2]
[346828723,1735311040606,-2391.71,0.00010768,2]
[346828724,1735311040615,-547.00597955,0.00010768,2]
[346828725,1735311040624,-500.0,0.00010768,2]
[346828726,1735311040634,-2065.34,0.00010768,2]
[346828727,1735311040643,-500.0,0.00010768,2]
[346828728,1735311040653,-965.24,0.00010768,2]
[346828729,1735311040662,-500.0,0.00010768,2]
[346828730,1735311040671,-500.0,0.00010768,2]
[346828731,1735311040682,-500.0,0.00010768,2]
[346828732,1735311040692,-511.7312456,0.00010768,2]
[346828733,1735311040701,-184.97032112,0.00010768,2]
[346828734,1735311040710,-500.0,0.00010768,2]
[346828735,1735311040719,-2436.63,0.00010768,2]
[346828736,1735311040730,-500.0,0.00010768,2]
[346828737,1735311040739,-500.0,0.00010768,2]
[346828738,1735311040749,-150.800475,0.00010769,2]
[346828739,1735311040759,-156.651929,0.00010769,2]
[346828740,1735311040769,-506.71165512,0.00010769,2]
[346828741,1735311040779,-500.0,0.00010769,2]
[346828742,1735311040788,-500.0,0.00010769,2]
[346828743,1735311040797,-151.0,0.00010769,2]
[346828744,1735311040807,-500.0,0.00010769,2]
[346828745,1735311040817,-1931.4,0.00010769,2]
[346828746,1735311040826,-2177.98,0.00010769,2]
[346828747,1735311040840,-3714.56,0.00010769,2]
[346828748,1735311040849,-14111.16,0.00010769,2]
[346828749,1735311040859,-3447.69,0.00010769,2]
[346828750,1735311040868,-6974.6,0.00010769,2]
[346828751,1735311040878,-3629.23,0.00010769,2]
[346828752,1735311040888,-13570.56,0.00010769,2]
[346828753,1735311040897,-151.0,0.00010769,2]
[346828754,1735311040907,-500.0,0.00010769,2]
[346828755,1735311040916,-3609.89,0.00010769,2]
[346828756,1735311040926,-7785.91,0.00010769,2]
[346828757,1735311040935,-500.0,0.00010769,2]
[346828758,1735311040945,-3786.31,0.00010769,2]
[346828759,1735311040955,-3568.56,0.00010769,2]
[346828760,1735311040964,-6177.44,0.00010769,2]
[346828761,1735311040974,-1032.38,0.00010769,2]
[346828762,1735311040986,-2890.39425032,0.0001077,2]
[346828763,1735311040995,-410.81926677,0.00010771,2]
[346828764,1735311041004,-525.70088984,0.00010771,2]
[346828765,1735311041014,-500.0,0.00010771,2]
[346828766,1735311041023,-502.61697551,0.00010771,2]
[346828767,1735311041034,-509.89250226,0.00010771,2]
[346828768,1735311041043,-500.0,0.00010771,2]
[346828769,1735311041054,-254.79506545,0.00010771,2]
[346828770,1735311041064,-523.83419459,0.00010771,2]
[346828771,1735311041073,-393.03619184,0.00010771,2]
[346828772,1735311041083,-504.17916388,0.00010771,2]
[346828773,1735311041093,-500.0,0.00010771,2]
[346828774,1735311041103,-500.0,0.00010771,2]
[346828775,1735311041113,-500.0,0.00010771,2]
[346828776,1735311041123,-500.0,0.00010771,2]
[346828777,1735311041133,-500.0,0.00010771,2]
[346828778,1735311041143,-500.0,0.00010771,2]
[346828779,1735311041153,-500.0,0.00010771,2]
[346828780,1735311041163,-500.0,0.00010771,2]
[346828781,1735311041173,-509.13042656,0.00010771,2]
[346828782,1735311041182,-500.0,0.00010771,2]
[346828783,1735311041192,-500.0,0.00010771,2]
[346828784,1735311041201,-500.0,0.00010771,2]
[346828785,1735311041211,-500.0,0.00010771,2]
[346828786,1735311041221,-511.01586152,0.00010771,2]
[346828787,1735311041232,-500.0,0.00010771,2]
[346828788,1735311041241,-500.0,0.00010771,2]
[346828789,1735311041250,-517.71717879,0.00010771,2]
[346828790,1735311041260,-500.0,0.00010771,2]
[346828791,1735311041269,-501.09755772,0.00010771,2]
[346828792,1735311041279,-500.0,0.00010771,2]
[346828793,1735311041288,-307.88048358,0.00010771,2]
[346828794,1735311041298,-187.49562423,0.00010771,2]
[346828795,1735311041307,-500.0,0.00010771,2]
[346828796,1735311041317,-500.0,0.00010771,2]
[346828797,1735311041327,-512.12870214,0.00010771,2]
[346828798,1735311041336,-2525.6,0.00010771,2]
[346828799,1735311041345,-500.0,0.00010771,2]
[346828800,1735311041355,-656.99,0.00010771,2]
[346828801,1735311041364,-1963.22,0.00010771,2]
[346828802,1735311041374,-1134.22,0.00010771,2]
[346828803,1735311041383,-500.0,0.00010771,2]
[346828804,1735311041393,-500.0,0.00010771,2]
[346828805,1735311041402,-500.0,0.00010771,2]
[346828806,1735311041411,-1623.73,0.00010771,2]
[346828807,1735311041420,-500.0,0.00010771,2]
[346828808,1735311041429,-1247.28,0.00010771,2]
[346828809,1735311041439,-1353.99,0.00010771,2]
[346828810,1735311041448,-2038.4,0.00010771,2]
[346828811,1735311041457,-1537.6,0.00010771,2]
[346828812,1735311041467,-1260.99,0.00010771,2]
[346828813,1735311041477,-1312.73,0.00010771,2]
[346828814,1735311041488,-500.0,0.00010771,2]
[346828815,1735311041497,-500.0,0.00010771,2]
[346828816,1735311041507,-1380.77,0.00010771,2]
[346828817,1735311041516,-500.0,0.00010771,2]
[346828818,1735311041526,-1518.26,0.00010771,2]
[346828819,1735311041536,-500.0,0.00010771,2]
[346828820,1735311041545,-2019.35,0.00010771,2]
[346828821,1735311041555,-959.6,0.00010771,2]
[346828822,1735311041565,-2185.72,0.00010771,2]
[346828823,1735311041574,-1191.53,0.00010771,2]
[346828824,1735311041583,-9590.28,0.00010771,2]
[346828825,1735311041593,-500.0,0.00010771,2]
[346828826,1735311041602,-1595.37,0.00010771,2]
[346828827,1735311041612,-2499.52,0.00010771,2]
[346828828,1735311041621,-500.0,0.00010771,2]
[346828829,1735311041630,-1536.46,0.00010771,2]
[346828830,1735311041639,-1210.07,0.00010771,2]
[346828831,1735311041648,-1491.99,0.00010771,2]
[346828832,1735311041657,-151.0,0.00010771,2]
[346828833,1735311041667,-1228.85,0.00010771,2]
[346828834,1735311041676,-3533.43,0.00010771,2]
[346828835,1735311041686,-3107.55,0.00010771,2]
[346828836,1735311041695,-2258.98,0.00010771,2]
[346828837,1735311041705,-2768.71,0.00010771,2]
[346828838,1735311041714,-500.0,0.00010771,2]
[346828839,1735311041724,-1036.61,0.00010771,2]
[346828840,1735311041734,-975.78,0.00010771,2]
[346828841,1735311041743,-2895.74,0.00010771,2]
[346828842,1735311041752,-1160.87,0.00010771,2]
[346828843,1735311041762,-2365.56,0.00010771,2]
[346828844,1735311041771,-1291.3,0.00010771,2]
[346828845,1735311041780,-1282.01,0.00010771,2]
[346828846,1735311041789,-680.25,0.00010771,2]
[346828847,1735311041799,-500.0,0.00010771,2]
[346828848,1735311041808,-579.55,0.00010771,2]
[346828849,1735311041817,-500.0,0.00010771,2]
[346828850,1735311041827,-896.97,0.00010771,2]
[346828851,1735311041841,-2906.82,0.00010771,2]
[346828852,1735311041851,-151.0,0.00010772,2]
[346828853,1735311041861,-500.0,0.00010772,2]
[346828854,1735311041871,-218.0,0.00010772,2]
[346828855,1735311041882,-3468.67,0.00010772,2]
[346828856,1735311041892,-3017.68,0.00010772,2]
[346828857,1735311041902,-1830.55,0.00010772,2]
[346828858,1735311041911,-3664.47,0.00010772,2]
[346828859,1735311041921,-8325.34,0.00010772,2]
[346828860,1735311041930,-7600.41282838,0.00010772,2]
[346828861,1735311041945,-1071.52999766,0.00010772,2]
[346828883,1735311044315,-500.0,0.00010766,2]
[346828885,1735311044326,-500.0,0.00010766,2]
[346828887,1735311044335,-500.0,0.00010767,2]
[346828889,1735311044345,-260.959996,0.00010768,2]
[346828891,1735311044358,-239.040004,0.00010768,2]
[346828893,1735311044368,-1845.86717396,0.00010772,2]
[346828895,1735311044378,-5218.33678966,0.00010772,2]
[346828897,1735311044391,-1349.05255331,0.00010772,2]
[346828900,1735311044402,-815.95938067,0.00010772,2]
[346828902,1735311044414,-423.4590749,0.00010772,2]
[346828905,1735311044434,-6423.37404545,0.00010772,2]
[346828908,1735311044457,-2216.0200985,0.00010772,2]
[346828911,1735311044469,-447.500003,0.00010772,2]
[346828913,1735311044481,-449.23479685,0.00010772,2]
[346828947,1735311044822,-4785.83642843,0.00010772,2]
[346828949,1735311044835,-564.6989879,0.00010772,2]
[346828952,1735311044849,-331.40844841,0.00010772,2]
[346828982,1735311045329,-11212.02939292,0.00010772,2]
[346828984,1735311045339,-5402.28,0.00010772,2]
[346828986,1735311045349,-3011.98,0.00010772,2]
[346828988,1735311045359,-2286.19,0.00010772,2]
[346828990,1735311045369,-5964.37,0.00010772,2]
[346828992,1735311045378,-4476.64,0.00010772,2]
[346828994,1735311045388,-33988.18,0.00010772,2]
[346828996,1735311045399,-3483.66,0.00010772,2]
[346828998,1735311045409,-1271.02,0.00010772,2]
[346828999,1735311045418,-510.12,0.00010772,2]
[346829001,1735311045428,-500.0,0.00010773,2]
[346829003,1735311045437,-549.88230768,0.00010773,2]
[346829005,1735311045447,-169.48483703,0.00010773,2]
[346829007,1735311045456,-500.0,0.00010773,2]
[346829008,1735311045466,-771.1,0.000108,2]
[346829010,1735311045476,-437.31,0.000108,2]
[346829012,1735311045491,-437.31,0.000108,2]
[346829013,1735311045501,-771.1,0.000108,2]
[346829015,1735311045511,-437.31,0.00010841,2]
[346829018,1735311045528,-437.31,0.00010841,2]
[346829020,1735311045537,-771.1,0.00010841,2]
[346829021,1735311045547,-771.1,0.00010841,2]
[346829022,1735311045557,-874.53,0.00010841,2]
[346829023,1735311045566,-437.31,0.00010841,2]
[346829024,1735311045576,-1541.48,0.00010841,2]
[346829025,1735311045586,-437.31,0.00010841,2]
[346829026,1735311045595,-1542.2,0.00010841,2]
[346829027,1735311045605,-771.1,0.00010841,2]
[346829028,1735311045614,-437.31,0.00010841,2]
[346829029,1735311045624,-771.1,0.00010841,2]
[346829030,1735311045633,-771.1,0.00010841,2]
[346829031,1735311045643,-7197.55245,0.00010864,2]
[346829032,1735311045654,-2199.5262389,0.00010864,2]
[346829033,1735311045663,-1551.1438548,0.00010864,2]
[346829034,1735311045673,-5124.0394953,0.00010864,2]
[346829035,1735311045683,-13196.5729721,0.00010864,2]
[346829037,1735311045692,-4197.3417657,0.00010864,2]
[346829039,1735311045702,-4440.4914292,0.00010864,2]
[346829041,1735311045711,-500.0,0.00010869,2]